bitfinex/quotes_BTCUSD_20250614
["timestamp","ask_amount","ask_price","bid_price","bid_amount"]
[1749943212992,0.23667318,105630.0,105620.0,0.66544264]
[1749943213214,0.03786604,105630.0,105620.0,0.78154814]
[1749943213429,0.04733295,105630.0,105620.0,0.78254814]
[1749943214719,0.04733366,105630.0,105620.0,0.78254823]
[1749943216034,0.04733366,105630.0,105620.0,0.7920155]
[1749943216188,0.04733366,105630.0,105620.0,0.88816472]
[1749943216680,0.03786666,105630.0,105620.0,0.88816472]
[1749943217006,0.04733366,105630.0,105620.0,0.88816472]
[1749943218276,0.2366738,105630.0,105620.0,0.87869745]
[1749943218606,0.04733366,105630.0,105620.0,0.88816472]
[1749943220709,0.03786666,105630.0,105620.0,0.88816472]
[1749943221067,0.00946638,105630.0,105620.0,0.88816472]
[1749943221295,0.00946638,105630.0,105620.0,1.28335698]
[1749943221678,0.54833975,105640.0,105630.0,0.27127351]
[1749943221856,0.54833975,105640.0,105630.0,0.32195771]
[1749943222716,0.54933975,105640.0,105630.0,0.32195771]
[1749943223152,0.54933975,105640.0,105630.0,0.32295771]
[1749943223354,0.54833975,105640.0,105630.0,0.32295771]
[1749943223761,0.54833975,105640.0,105630.0,0.33242417]
[1749943223922,0.54833975,105640.0,105630.0,0.31349116]
[1749943224130,0.54833975,105640.0,105630.0,0.32295789]
[1749943224826,0.54833975,105640.0,105630.0,0.28149116]
[1749943225485,0.54833975,105640.0,105630.0,0.57639116]
[1749943226417,0.53887391,105640.0,105630.0,0.57639116]
[1749943226843,0.53887391,105640.0,105630.0,0.61875789]
[1749943228250,0.53887391,105640.0,105630.0,0.56692434]
[1749943228453,0.53887391,105640.0,105630.0,0.68794714]
[1749943228826,0.5294078,105640.0,105630.0,0.498607]
[1749943229399,0.5294078,105640.0,105630.0,0.2959]
[1749943229599,0.5621078,105640.0,105630.0,0.44962]
[1749943233312,1.00631759,105640.0,105630.0,0.44962]
[1749943235014,1.03801759,105640.0,105630.0,0.44962]
[1749943237340,0.98875735,105640.0,105630.0,0.44962]
[1749943238150,0.98875735,105640.0,105630.0,0.2959]
[1749943238644,0.98875735,105640.0,105630.0,0.44962]
[1749943241315,1.08499911,105640.0,105630.0,0.44962]
[1749943242928,1.08499911,105640.0,105630.0,0.2959]
[1749943243142,1.08499911,105640.0,105630.0,0.44962]
[1749943244681,1.08499911,105640.0,105630.0,0.2959]
[1749943244889,1.08499911,105640.0,105630.0,0.44962]
[1749943246135,1.08499911,105640.0,105630.0,0.2959]
[1749943246556,1.08499911,105640.0,105630.0,0.44962]
[1749943248878,1.08499911,105640.0,105630.0,0.2959]
[1749943249086,1.08499911,105640.0,105630.0,0.44962]
[1749943250529,1.08499911,105640.0,105630.0,0.2959]
[1749943250734,1.08499911,105640.0,105630.0,0.44962]
[1749943256751,1.10499911,105640.0,105630.0,0.44962]
[1749943257297,1.15434375,105640.0,105630.0,0.44962]
[1749943262019,0.71004956,105640.0,105630.0,0.44962]
[1749943262236,1.15434375,105640.0,105630.0,0.44962]
[1749943267531,1.15324375,105640.0,105630.0,0.44962]
[1749943268032,1.37324375,105640.0,105630.0,0.2959]
[1749943268531,0.89834956,105640.0,105630.0,0.2959]
[1749943268716,0.62564956,105640.0,105630.0,0.343912]
[1749943268863,1.06994375,105640.0,105630.0,0.374412]
[1749943269558,1.07094375,105640.0,105630.0,0.374412]
[1749943269909,1.06994375,105640.0,105630.0,0.374412]
[1749943270492,1.06994375,105640.0,105630.0,0.2949]
[1749943270799,1.07194375,105640.0,105630.0,0.2949]
[1749943279976,0.62764956,105640.0,105630.0,0.2949]
[1749943280161,1.07194375,105640.0,105630.0,0.2949]
[1749943286451,1.10414375,105640.0,105630.0,0.2949]
[1749943287331,1.10414375,105640.0,105630.0,0.44862]
[1749943287613,1.15705058,105640.0,105630.0,0.44862]
[1749943287946,1.10414375,105640.0,105630.0,0.44862]
[1749943290453,1.07194375,105640.0,105630.0,0.44862]
[1749943304976,1.07194375,105640.0,105630.0,0.47922]
[1749943305367,1.07194375,105640.0,105630.0,0.47674]
[1749943308577,1.07194375,105640.0,105630.0,0.44614]
[1749943317086,1.07194375,105640.0,105630.0,0.29242]
[1749943317383,1.07194375,105640.0,105630.0,0.4461]
[1749943323727,1.10334375,105640.0,105630.0,0.4461]
[1749943325186,1.10334375,105640.0,105630.0,0.29242]
[1749943325391,0.19882579,105620.0,105610.0,0.0618]
[1749943325596,0.64311998,105620.0,105610.0,0.18418]
[1749943327072,0.64311998,105620.0,105610.0,0.18618]
[1749943327238,0.64311998,105620.0,105610.0,0.0325]
[1749943327455,0.67451998,105620.0,105610.0,0.15568]
[1749943327654,0.64311998,105620.0,105610.0,0.15568]
[1749943327977,0.64311998,105620.0,105610.0,0.15768]
[1749943328752,0.64311998,105620.0,105610.0,0.0345]
[1749943331591,0.67451998,105620.0,105610.0,0.004]
[1749943332754,0.64311998,105620.0,105610.0,0.004]
[1749943334051,0.19882579,105620.0,105610.0,0.004]
[1749943334247,0.64311998,105620.0,105610.0,0.004]
[1749943335057,0.64311998,105620.0,105610.0,0.29642]
[1749943338308,0.98311998,105620.0,105610.0,0.29642]
[1749943351554,1.01401998,105620.0,105610.0,0.29642]
[1749943352814,0.98311998,105620.0,105610.0,0.29642]
[1749943353094,1.01401998,105620.0,105610.0,0.29642]
[1749943354278,1.01401998,105620.0,105610.0,0.004]
[1749943354497,1.16905363,105620.0,105610.0,0.004]
[1749943355152,1.16905363,105620.0,105610.0,0.002]
[1749943355376,1.20696663,105620.0,105610.0,0.002]
[1749943355802,0.19884462,105610.0,105600.0,0.18678738]
[1749943356013,0.64313881,105610.0,105600.0,0.18678738]
[1749943356530,0.64313881,105610.0,105600.0,0.03314738]
[1749943357144,0.64313881,105610.0,105600.0,0.03714738]
[1749943357599,0.65267806,105610.0,105600.0,0.03714738]
[1749943360762,0.65267806,105610.0,105600.0,0.06734738]
[1749943361782,0.65267806,105610.0,105600.0,0.36224738]
[1749943363381,0.65267806,105610.0,105600.0,0.33204738]
[1749943364028,0.65267806,105610.0,105600.0,0.03714738]
[1749943373600,0.65267806,105610.0,105600.0,0.33204738]
[1749943379964,0.65267806,105610.0,105600.0,0.29894738]
[1749943383571,0.65267806,105610.0,105600.0,0.48534738]
[1749943384143,0.65267806,105610.0,105600.0,0.19044738]
[1749943385012,0.67934522,105610.0,105600.0,0.19044738]
[1749943385451,0.67934522,105610.0,105600.0,0.03684738]
[1749943385664,0.67934498,105610.0,105600.0,0.19044738]
[1749943385886,0.66156704,105610.0,105600.0,0.03684738]
[1749943386319,0.68601171,105610.0,105600.0,0.03684738]
[1749943386557,0.67934514,105610.0,105600.0,0.03684738]
[1749943387203,0.68601195,105610.0,105600.0,0.03684738]
[1749943387437,0.6682339,105610.0,105600.0,0.03684738]
[1749943387644,0.68601212,105610.0,105600.0,0.03684738]
[1749943387905,0.68601226,105610.0,105600.0,0.03684738]
[1749943388116,0.6593449,105610.0,105600.0,0.03684738]
[1749943388328,0.68601226,105610.0,105600.0,0.03684738]
[1749943388545,0.67934542,105610.0,105600.0,0.03684738]
[1749943388757,0.66823402,105610.0,105600.0,0.03684738]
[1749943388973,0.65267806,105610.0,105600.0,0.03684738]
[1749943389204,0.66156718,105610.0,105600.0,0.03684738]
[1749943389426,0.68601224,105610.0,105600.0,0.03684738]
[1749943389856,0.68601218,105610.0,105600.0,0.03684738]
[1749943390083,0.66823395,105610.0,105600.0,0.03684738]
[1749943390294,0.68601206,105610.0,105600.0,0.03684738]
[1749943390506,0.67712285,105610.0,105600.0,0.03684738]
[1749943390750,0.65934482,105610.0,105600.0,0.03684738]
[1749943390987,0.65934481,105610.0,105600.0,0.03684738]
[1749943391206,0.66823384,105610.0,105600.0,0.03684738]
[1749943391434,0.66823389,105610.0,105600.0,0.03684738]
[1749943391898,0.65934484,105610.0,105600.0,0.00404738]
[1749943392375,0.66823385,105610.0,105600.0,0.00404738]
[1749943392595,0.66823391,105610.0,105600.0,0.00404738]
[1749943392798,0.65934485,105610.0,105600.0,0.00404738]
[1749943393035,0.66823391,105610.0,105600.0,0.00404738]
[1749943393238,0.66823395,105610.0,105600.0,0.00404738]
[1749943393445,0.66156716,105610.0,105600.0,0.00404738]
[1749943393658,0.66823399,105610.0,105600.0,0.00404738]
[1749943394082,0.66156716,105610.0,105600.0,0.00404738]
[1749943394303,0.66156716,105610.0,105600.0,0.29894738]
[1749943394514,0.66823399,105610.0,105600.0,0.29894738]
[1749943394935,0.65934489,105610.0,105600.0,0.29894738]
[1749943395151,0.6860122,105610.0,105600.0,0.29894738]
[1749943395362,0.67934537,105610.0,105600.0,0.29894738]
[1749943395617,0.65934488,105610.0,105600.0,0.29894738]
[1749943395832,0.68601215,105610.0,105600.0,0.29894738]
[1749943396267,0.67712306,105610.0,105600.0,0.29894738]
[1749943396478,0.68601215,105610.0,105600.0,0.29894738]
[1749943396945,0.67934533,105610.0,105600.0,0.29894738]
[1749943397154,0.67712129,105610.0,105600.0,0.29894738]
[1749943397391,0.65934426,105610.0,105600.0,0.29894738]
[1749943397642,0.67712081,105610.0,105600.0,0.29894738]
[1749943398104,0.68600908,105610.0,105600.0,0.29894738]
[1749943398321,0.71860908,105610.0,105600.0,0.29894738]
[1749943398889,0.69416633,105610.0,105600.0,0.29894738]
[1749943399097,0.67712081,105610.0,105600.0,0.29894738]
[1749943399316,0.68600908,105610.0,105600.0,0.29894738]
[1749943399993,0.66823253,105610.0,105600.0,0.29894738]
[1749943400207,0.66156633,105610.0,105600.0,0.29894738]
[1749943400437,0.65934426,105610.0,105600.0,0.29894738]
[1749943400855,0.66823253,105610.0,105600.0,0.29894738]
[1749943401056,0.66156633,105610.0,105600.0,0.29894738]
[1749943401268,0.70033253,105610.0,105600.0,0.29894738]
[1749943401483,0.70033254,105610.0,105600.0,0.29894738]
[1749943401688,0.69366634,105610.0,105600.0,0.29894738]
[1749943401905,0.70033255,105610.0,105600.0,0.29894738]
[1749943402524,0.69144427,105610.0,105600.0,0.29894738]
[1749943402730,0.70033255,105610.0,105600.0,0.29894738]
[1749943403375,0.68477806,105610.0,105600.0,0.29894738]
[1749943403610,0.66823232,105610.0,105600.0,0.29894738]
[1749943404856,0.66156621,105610.0,105600.0,0.29894738]
[1749943405061,0.66823232,105610.0,105600.0,0.29894738]
[1749943405273,0.21504998,105610.0,105600.0,0.29894738]
[1749943405494,0.66156618,105610.0,105600.0,0.33014738]
[1749943405722,0.66823227,105610.0,105600.0,0.33014738]
[1749943405933,0.67712046,105610.0,105600.0,0.33014738]
[1749943406172,0.67045434,105610.0,105600.0,0.33014738]
[1749943406394,0.67712044,105610.0,105600.0,0.03524738]
[1749943406596,0.67712046,105610.0,105600.0,0.03524738]
[1749943406798,0.67045435,105610.0,105600.0,0.00404738]
[1749943407230,0.67712046,105610.0,105600.0,0.00404738]
[1749943407440,0.70529288,105610.0,105600.0,0.00404738]
[1749943407644,0.69862677,105610.0,105600.0,0.00404738]
[1749943407858,0.69640486,105610.0,105600.0,0.00404738]
[1749943408078,0.70529318,105610.0,105600.0,0.00404738]
[1749943408279,0.69640486,105610.0,105600.0,0.00404738]
[1749943408486,0.70529318,105610.0,105600.0,0.00404738]
[1749943409104,0.7141815,105610.0,105600.0,0.00404738]
[1749943409309,0.70751526,105610.0,105600.0,0.00404738]
[1749943409510,0.7141815,105610.0,105600.0,0.00404738]
[1749943409725,0.69862694,105610.0,105600.0,0.00404738]
[1749943409939,0.70529318,105610.0,105600.0,0.00404738]
[1749943410180,0.70751526,105610.0,105600.0,0.00404738]
[1749943410873,0.7141815,105610.0,105600.0,0.00404738]
[1749943411321,0.70529318,105610.0,105600.0,0.00404738]
[1749943411539,0.70751526,105610.0,105600.0,0.00404738]
[1749943411755,0.7141815,105610.0,105600.0,0.00404738]
[1749943411967,0.70751526,105610.0,105600.0,0.29894738]
[1749943412199,0.69862694,105610.0,105600.0,0.29894738]
[1749943412414,0.7141815,105610.0,105600.0,0.29894738]
[1749943414124,0.70529318,105610.0,105600.0,0.29894738]
[1749943414344,0.70751526,105610.0,105600.0,0.29894738]
[1749943414571,0.7141815,105610.0,105600.0,0.29894738]
[1749943414781,0.70751526,105610.0,105600.0,0.29894738]
[1749943414991,0.71418216,105610.0,105600.0,0.29894738]
[1749943416031,0.70529384,105610.0,105600.0,0.29894738]
[1749943416254,0.71418304,105610.0,105600.0,0.29894738]
[1749943416457,0.70529384,105610.0,105600.0,0.29894738]
[1749943416671,0.69862694,105610.0,105600.0,0.29894738]
[1749943416902,0.71418304,105610.0,105600.0,0.29894738]
[1749943417129,1.3945579,105610.0,105600.0,0.00404738]
[1749943417350,1.45430369,105610.0,105600.0,0.00404738]
[1749943417608,1.46097097,105610.0,105600.0,0.00404738]
[1749943417824,1.45925419,105610.0,105600.0,0.00404738]
[1749943418038,1.45925431,105610.0,105600.0,0.00404738]
[1749943418258,1.67703187,105610.0,105600.0,0.00404738]
[1749943418689,1.68592165,105610.0,105600.0,0.00404738]
[1749943418692,1.67703187,105610.0,105600.0,0.00404738]
[1749943419157,1.68592165,105610.0,105600.0,0.00404738]
[1749943419638,1.68592166,105610.0,105600.0,0.00404738]
[1749943419876,1.67703187,105610.0,105600.0,0.00404738]
[1749943420094,1.68592165,105610.0,105600.0,0.00404738]
[1749943420318,1.68592164,105610.0,105600.0,0.00404738]
[1749943420558,1.68592187,105610.0,105600.0,0.00404738]
[1749943420830,1.68591261,105610.0,105600.0,0.00404738]
[1749943421059,1.67924199,105610.0,105600.0,0.00404738]
[1749943421285,1.68590009,105610.0,105600.0,0.00404738]
[1749943421528,1.6859001,105610.0,105600.0,0.00404738]
[1749943421741,1.67036453,105610.0,105600.0,0.00404738]
[1749943421954,1.67702263,105610.0,105600.0,0.00404738]
[1749943422176,1.83946009,105610.0,105600.0,0.00404738]
[1749943422439,1.65460009,105610.0,105600.0,0.00404738]
[1749943422667,1.80150199,105610.0,105600.0,0.00404738]
[1749943422889,1.37714199,105610.0,105600.0,0.03494738]
[1749943423106,1.38379977,105610.0,105600.0,0.06704738]
[1749943423324,1.38379972,105610.0,105600.0,0.03494738]
[1749943423538,1.36826453,105610.0,105600.0,0.03494738]
[1749943423759,1.37492248,105610.0,105600.0,0.03494738]
[1749943423970,1.38379951,105610.0,105600.0,0.32984738]
[1749943424191,1.38379966,105610.0,105600.0,0.32984738]
[1749943424411,1.38379969,105610.0,105600.0,0.32984738]
[1749943424644,1.38377234,105610.0,105600.0,0.32984738]
[1749943424875,1.38377254,105610.0,105600.0,0.29894738]
[1749943425169,1.37711453,105610.0,105600.0,0.29894738]
[1749943425397,1.38377254,105610.0,105600.0,0.29894738]
[1749943426123,1.37489519,105610.0,105600.0,0.29894738]
[1749943426566,1.37711453,105610.0,105600.0,0.29894738]
[1749943426790,1.37711454,105610.0,105600.0,0.29894738]
[1749943427004,1.3748952,105610.0,105600.0,0.29894738]
[1749943427220,1.38376768,105610.0,105600.0,0.29894738]
[1749943427432,1.36823718,105610.0,105600.0,0.29894738]
[1749943427645,1.37489311,105610.0,105600.0,0.29894738]
[1749943427874,1.38376768,105610.0,105600.0,0.29894738]
[1749943428306,1.36823718,105610.0,105600.0,0.29894738]
[1749943428524,1.38376768,105610.0,105600.0,0.29894738]
[1749943428957,1.37489311,105610.0,105600.0,0.29894738]
[1749943429411,1.37711175,105610.0,105600.0,0.29894738]
[1749943429830,1.38376768,105610.0,105600.0,0.29894738]
[1749943430041,1.38376767,105610.0,105600.0,0.29894738]
[1749943430277,1.38376764,105610.0,105600.0,0.29894738]
[1749943430699,1.3748931,105610.0,105600.0,0.29894738]
[1749943430909,1.38376759,105610.0,105600.0,0.29894738]
[1749943431122,1.37711174,105610.0,105600.0,0.29894738]
[1749943431337,1.38376766,105610.0,105600.0,0.29894738]
[1749943431780,1.36823718,105610.0,105600.0,0.29894738]
[1749943431997,1.38376766,105610.0,105600.0,0.29894738]
[1749943432212,1.3748931,105610.0,105600.0,0.29894738]
[1749943432426,1.38376766,105610.0,105600.0,0.29894738]
[1749943432640,1.37711174,105610.0,105600.0,0.29894738]
[1749943432876,1.38376766,105610.0,105600.0,0.29894738]
[1749943433099,1.38376763,105610.0,105600.0,0.29894738]
[1749943433311,1.40931171,105610.0,105600.0,0.29894738]
[1749943433530,1.41596764,105610.0,105600.0,0.29894738]
[1749943433736,1.40931175,105610.0,105600.0,0.29894738]
[1749943433950,1.41596768,105610.0,105600.0,0.29894738]
[1749943434185,1.40931175,105610.0,105600.0,0.29894738]
[1749943434412,1.40043718,105610.0,105600.0,0.29894738]
[1749943434628,1.41596768,105610.0,105600.0,0.29894738]
[1749943436162,1.40931175,105610.0,105600.0,0.29894738]
[1749943436381,1.41596768,105610.0,105600.0,0.29894738]
[1749943436810,1.41596754,105610.0,105600.0,0.29894738]
[1749943437246,1.40931167,105610.0,105600.0,0.29894738]
[1749943437459,1.41596749,105610.0,105600.0,0.29894738]
[1749943437885,1.41597905,105610.0,105600.0,0.29894738]
[1749943438138,1.40043718,105610.0,105600.0,0.29894738]
[1749943438350,1.41599448,105610.0,105600.0,0.29894738]
[1749943438576,1.40932707,105610.0,105600.0,0.29894738]
[1749943439008,1.37490459,105610.0,105600.0,0.29894738]
[1749943439222,1.36823718,105610.0,105600.0,0.29894738]
[1749943439457,1.38379448,105610.0,105600.0,0.29894738]
[1749943439892,1.3749035,105610.0,105600.0,0.29894738]
[1749943440109,1.38379193,105610.0,105600.0,0.29894738]
[1749943440328,1.3749035,105610.0,105600.0,0.29894738]
[1749943440552,1.36823718,105610.0,105600.0,0.29894738]
[1749943440796,1.3749035,105610.0,105600.0,0.29894738]
[1749943441032,1.36823718,105610.0,105600.0,0.29894738]
[1749943441256,1.3749035,105610.0,105600.0,0.29894738]
[1749943441469,1.38379193,105610.0,105600.0,0.29894738]
[1749943443050,1.37712561,105610.0,105600.0,0.29894738]
[1749943443498,1.3749035,105610.0,105600.0,0.29894738]
[1749943444872,1.38379193,105610.0,105600.0,0.29894738]
[1749943446486,1.45341525,105610.0,105600.0,0.29894738]
[1749943446715,1.6069354,105610.0,105600.0,0.29894738]
[1749943446937,1.60693571,105610.0,105600.0,0.29894738]
[1749943447635,1.61360223,105610.0,105600.0,0.29894738]
[1749943447870,1.59804702,105610.0,105600.0,0.29894738]
[1749943448134,1.60026919,105610.0,105600.0,0.29694738]
[1749943448369,2.33284774,105610.0,105600.0,0.00204738]
[1749943448590,2.36132695,105610.0,105600.0,0.00204738]
[1749943448814,1.47940629,105610.0,105600.0,0.00204738]
[1749943449028,2.31110968,105610.0,105600.0,4.738e-05]
[1749943449239,2.38695633,105610.0,105600.0,4.738e-05]
[1749943449456,2.38028878,105610.0,105600.0,4.738e-05]
[1749943449678,2.36794823,105610.0,105600.0,4.738e-05]
[1749943449894,2.37094823,105610.0,105600.0,4.738e-05]
[1749943450132,1.92665396,105610.0,105600.0,4.738e-05]
[1749943450338,2.35539056,105610.0,105600.0,4.738e-05]
[1749943450553,2.3620581,105610.0,105600.0,4.738e-05]
[1749943451020,2.3709507,105610.0,105600.0,4.738e-05]
[1749943451251,2.36989327,105610.0,105600.0,4.738e-05]
[1749943451491,2.37089323,105610.0,105600.0,4.738e-05]
[1749943451732,2.36424923,105610.0,105600.0,4.738e-05]
[1749943451952,2.37089326,105610.0,105600.0,4.738e-05]
[1749943452180,2.37089327,105610.0,105600.0,4.738e-05]
[1749943452410,2.36203458,105610.0,105600.0,4.738e-05]
[1749943453073,2.36424925,105610.0,105600.0,4.738e-05]
[1749943453562,2.36203458,105610.0,105600.0,4.738e-05]
[1749943453787,2.37089327,105610.0,105600.0,4.738e-05]
[1749943454668,1.92659908,105610.0,105600.0,4.738e-05]
[1749943454894,1.92659907,105610.0,105600.0,4.738e-05]
[1749943455111,1.92659906,105610.0,105600.0,4.738e-05]
[1749943455549,1.92659904,105610.0,105600.0,4.738e-05]
[1749943456533,1.91995504,105610.0,105600.0,4.738e-05]
[1749943456758,1.97950586,105610.0,105600.0,4.738e-05]
[1749943456975,1.91774036,105610.0,105600.0,4.738e-05]
[1749943457190,1.92659902,105610.0,105600.0,4.738e-05]
[1749943457419,1.91774036,105610.0,105600.0,4.738e-05]
[1749943457633,1.92659902,105610.0,105600.0,4.738e-05]
[1749943458067,1.91774036,105610.0,105600.0,4.738e-05]
[1749943458500,1.91109637,105610.0,105600.0,4.738e-05]
[1749943458709,1.92659902,105610.0,105600.0,4.738e-05]
[1749943459571,1.96444078,105610.0,105600.0,4.738e-05]
[1749943460066,1.94893813,105610.0,105600.0,4.738e-05]
[1749943460285,1.96444078,105610.0,105600.0,4.738e-05]
[1749943460503,2.39987631,105610.0,105600.0,4.738e-05]
[1749943460718,2.40873497,105610.0,105600.0,4.738e-05]
[1749943460933,2.39987631,105610.0,105600.0,4.738e-05]
[1749943461202,2.40873497,105610.0,105600.0,4.738e-05]
[1749943461413,2.40873498,105610.0,105600.0,4.738e-05]
[1749943461830,2.40873497,105610.0,105600.0,4.738e-05]
[1749943462248,2.39987631,105610.0,105600.0,4.738e-05]
[1749943462681,2.40873497,105610.0,105600.0,4.738e-05]
[1749943463339,2.39987631,105610.0,105600.0,4.738e-05]
[1749943463576,2.40873498,105610.0,105600.0,4.738e-05]
[1749943464694,2.39323232,105610.0,105600.0,4.738e-05]
[1749943464933,2.40209098,105610.0,105600.0,4.738e-05]
[1749943465151,2.40873498,105610.0,105600.0,4.738e-05]
[1749943465380,2.40209098,105610.0,105600.0,4.738e-05]
[1749943465633,2.40873498,105610.0,105600.0,4.738e-05]
[1749943466331,2.40874588,105610.0,105600.0,4.738e-05]
[1749943466555,2.39988099,105610.0,105600.0,4.738e-05]
[1749943466766,2.36203923,105610.0,105600.0,4.738e-05]
[1749943467186,2.37090412,105610.0,105600.0,4.738e-05]
[1749943467572,2.36425545,105610.0,105600.0,4.738e-05]
[1749943467774,2.36203923,105610.0,105600.0,4.738e-05]
[1749943468139,2.37090412,105610.0,105600.0,4.738e-05]
[1749943468617,2.36203923,105610.0,105600.0,4.738e-05]
[1749943468828,2.37090413,105610.0,105600.0,4.738e-05]
[1749943469277,2.36425546,105610.0,105600.0,4.738e-05]
[1749943469516,2.37090413,105610.0,105600.0,4.738e-05]
[1749943469727,2.3620588,105610.0,105600.0,4.738e-05]
[1749943469977,2.37094978,105610.0,105600.0,4.738e-05]
[1749943470436,2.3620588,105610.0,105600.0,4.738e-05]
[1749943470655,2.36428154,105610.0,105600.0,4.738e-05]
[1749943470898,2.37094978,105610.0,105600.0,4.738e-05]
[1749943471367,2.41718837,105610.0,105600.0,4.738e-05]
[1749943471578,2.35539056,105610.0,105600.0,4.738e-05]
[1749943471796,2.37094978,105610.0,105600.0,4.738e-05]
[1749943472250,2.36428154,105610.0,105600.0,4.738e-05]
[1749943472526,2.37094978,105610.0,105600.0,4.738e-05]
[1749943472942,2.36428154,105610.0,105600.0,4.738e-05]
[1749943473156,2.37094978,105610.0,105600.0,4.738e-05]
[1749943474475,2.3620588,105610.0,105600.0,4.738e-05]
[1749943474936,2.37094978,105610.0,105600.0,4.738e-05]
[1749943475581,2.3620588,105610.0,105600.0,4.738e-05]
[1749943475999,2.37094978,105610.0,105600.0,4.738e-05]
[1749943476210,2.35539056,105610.0,105600.0,4.738e-05]
[1749943476713,2.3620588,105610.0,105600.0,4.738e-05]
[1749943476934,2.37094978,105610.0,105600.0,4.738e-05]
[1749943477339,2.31411128,105610.0,105600.0,4.738e-05]
[1749943477546,2.3141114,105610.0,105600.0,4.738e-05]
[1749943477760,2.31411141,105610.0,105600.0,4.738e-05]
[1749943477985,2.38106708,105610.0,105600.0,4.738e-05]
[1749943478201,2.38995824,105610.0,105600.0,4.738e-05]
[1749943478419,2.34119871,105610.0,105600.0,4.738e-05]
[1749943478650,2.35675824,105610.0,105600.0,4.738e-05]
[1749943478868,0.41886344,105600.0,105590.0,0.06256153]
[1749943479097,0.73888228,105590.0,105580.0,0.0309]
[1749943479321,1.31453753,105590.0,105580.0,0.0309]
[1749943479554,1.31676032,105590.0,105580.0,0.0309]
[1749943479777,1.30786916,105590.0,105580.0,0.0309]
[1749943479996,1.31453753,105590.0,105580.0,0.0309]
[1749943480468,1.31676033,105590.0,105580.0,0.0309]
[1749943480686,1.31676033,105590.0,105580.0,0.0329]
[1749943480687,1.3234287,105590.0,105580.0,0.0329]
[1749943480928,1.32786916,105590.0,105580.0,0.0329]
[1749943481150,1.33676033,105590.0,105580.0,0.0329]
[1749943481390,1.3345376,105590.0,105580.0,0.0329]
[1749943481614,1.34342886,105590.0,105580.0,0.0329]
[1749943481825,1.33676042,105590.0,105580.0,0.0631]
[1749943482269,1.34342887,105590.0,105580.0,0.0631]
[1749943482477,1.34342887,105590.0,105580.0,0.0651]
[1749943482907,1.32786916,105590.0,105580.0,0.0651]
[1749943483126,1.33676042,105590.0,105580.0,0.36]
[1749943483353,1.34342887,105590.0,105580.0,0.36]
[1749943483568,1.3963357,105590.0,105580.0,0.36]
[1749943483792,1.34342887,105590.0,105580.0,0.36]
[1749943484050,1.32786916,105590.0,105580.0,0.36]
[1749943484270,1.34342887,105590.0,105580.0,0.36]
[1749943484490,1.33453761,105590.0,105580.0,0.36]
[1749943484717,1.34342887,105590.0,105580.0,0.36]
[1749943484929,1.33453761,105590.0,105580.0,0.36]
[1749943485153,1.34342887,105590.0,105580.0,0.36]
[1749943486021,1.33453761,105590.0,105580.0,0.36]
[1749943486240,1.33676042,105590.0,105580.0,0.36]
[1749943486458,1.33453761,105590.0,105580.0,0.36]
[1749943486673,1.33676042,105590.0,105580.0,0.36]
[1749943486890,1.33453761,105590.0,105580.0,0.36]
[1749943487111,1.34342888,105590.0,105580.0,0.36]
[1749943487325,1.34342891,105590.0,105580.0,0.36]
[1749943487545,1.34342894,105590.0,105580.0,0.36]
[1749943487758,1.34348674,105590.0,105580.0,0.36]
[1749943487984,1.33681826,105590.0,105580.0,0.36]
[1749943488208,1.34348674,105590.0,105580.0,0.36]
[1749943488452,1.33681826,105590.0,105580.0,0.36]
[1749943488885,1.32786916,105590.0,105580.0,0.3599422]
[1749943489124,1.34342535,105590.0,105580.0,0.3599422]
[1749943490258,1.3345361,105590.0,105580.0,0.3599422]
[1749943490685,1.3523146,105590.0,105580.0,0.3599422]
[1749943491372,1.34342535,105590.0,105580.0,0.3599422]
[1749943491595,1.3523146,105590.0,105580.0,0.3599422]
[1749943492065,1.34342535,105590.0,105580.0,0.3599422]
[1749943492281,1.3523146,105590.0,105580.0,0.3599422]
[1749943492503,1.33675841,105590.0,105580.0,0.3599422]
[1749943492724,1.34564766,105590.0,105580.0,0.3599422]
[1749943492947,1.3523146,105590.0,105580.0,0.3599422]
[1749943493382,0.90135347,105590.0,105580.0,0.3599422]
[1749943493595,1.34564766,105590.0,105580.0,0.3599422]
[1749943493813,1.3523146,105590.0,105580.0,0.3599422]
[1749943494041,1.35231461,105590.0,105580.0,0.3599422]
[1749943494255,1.34342536,105590.0,105580.0,0.3599422]
[1749943494471,1.39024921,105590.0,105580.0,0.3599422]
[1749943494904,1.38358226,105590.0,105580.0,0.3599422]
[1749943495116,1.39024921,105590.0,105580.0,0.3599422]
[1749943495794,1.35231463,105590.0,105580.0,0.3599422]
[1749943496235,1.35231397,105590.0,105580.0,0.3599422]
[1749943496453,1.34342508,105590.0,105580.0,0.3599422]
[1749943496676,1.39024855,105590.0,105580.0,0.3599422]
[1749943496911,1.35231397,105590.0,105580.0,0.3599422]
[1749943497120,1.33675841,105590.0,105580.0,0.3599422]
[1749943497339,1.34342508,105590.0,105580.0,0.3599422]
[1749943497562,1.35231397,105590.0,105580.0,0.3599422]
[1749943497776,1.39024855,105590.0,105580.0,0.3599422]
[1749943498261,1.37469299,105590.0,105580.0,0.3599422]
[1749943498481,1.39024855,105590.0,105580.0,0.3599422]
[1749943498705,1.35231397,105590.0,105580.0,0.3599422]
[1749943498966,1.3456473,105590.0,105580.0,0.3599422]
[1749943499418,1.35231396,105590.0,105580.0,0.3599422]
[1749943499635,1.35231395,105590.0,105580.0,0.3599422]
[1749943499854,1.34342507,105590.0,105580.0,0.3599422]
[1749943500076,1.15231395,105590.0,105580.0,0.3599422]
[1749943500300,1.13675841,105590.0,105580.0,0.3599422]
[1749943500554,1.15231395,105590.0,105580.0,0.3599422]
[1749943500764,1.14342507,105590.0,105580.0,0.3599422]
[1749943500981,1.15231395,105590.0,105580.0,0.3599422]
[1749943501618,1.19024853,105590.0,105580.0,0.3599422]
[1749943501838,1.17469299,105590.0,105580.0,0.3599422]
[1749943502087,1.18135966,105590.0,105580.0,0.3599422]
[1749943502302,1.19024855,105590.0,105580.0,0.3599422]
[1749943502761,1.18135966,105590.0,105580.0,0.3599422]
[1749943502942,1.19024855,105590.0,105580.0,0.3599422]
[1749943503148,1.18358188,105590.0,105580.0,0.3599422]
[1749943503384,1.17469299,105590.0,105580.0,0.3599422]
[1749943503592,1.19024855,105590.0,105580.0,0.3599422]
[1749943504028,1.18358188,105590.0,105580.0,0.3599422]
[1749943504450,1.17469299,105590.0,105580.0,0.3599422]
[1749943504673,1.19024855,105590.0,105580.0,0.3599422]
[1749943505114,1.18358188,105590.0,105580.0,0.3599422]
[1749943505342,1.19024855,105590.0,105580.0,0.3599422]
[1749943505553,1.17469299,105590.0,105580.0,0.3599422]
[1749943505753,1.19024855,105590.0,105580.0,0.3599422]
[1749943506081,1.18358224,105590.0,105580.0,0.3599422]
[1749943506301,1.1902494,105590.0,105580.0,0.3599422]
[1749943506520,1.19024935,105590.0,105580.0,0.3599422]
[1749943506749,1.19024937,105590.0,105580.0,0.3599422]
[1749943506957,1.18136001,105590.0,105580.0,0.3599422]
[1749943507216,1.19025295,105590.0,105580.0,0.3599422]
[1749943507606,1.18136154,105590.0,105580.0,0.3599422]